fUSD/lending_fUSD_20240611
["ID","MTS","AMOUNT","RATE_DAILY","PERIOD"]
[329037228,1718069434152,-267.0597,0.00028941,2]
[329037229,1718069434177,-1058.9387,0.00028941,2]
[329037230,1718069434188,-160.50258066,0.00028941,2]
[329037231,1718069434198,-193.88261942,0.00028941,2]
[329037232,1718069434208,-167.4902711,0.00028941,2]
[329037233,1718069434219,-181.34631409,0.00028941,2]
[329037234,1718069434229,-5887.50795921,0.00028941,2]
[329037235,1718069439746,-499.74,0.00026953,2]
[329037236,1718069439760,-594.00058852,0.00028941,2]
[329037601,1718069444254,-876.04684347,0.00028941,2]
[329037604,1718069444266,-15041.43,0.00028941,2]
[329037753,1718069447088,-0.93133166,0.00028941,2]
[329037754,1718069447101,-41952.48434445,0.00028941,2]
[329037756,1718069623642,438517.61104676,0.00014,2]
[329037757,1718069668922,7373.38861575,0.00015,10]
[329037758,1718069669527,404.00204237,0.0001298,2]
[329037759,1718069832676,154.80893846,0.0002509,120]
[329037760,1718070572131,-328.09103155,0.00014507,2]
[329037761,1718070572156,-525.50363988,0.00014507,2]
[329037762,1718070572179,-253.45455834,0.00014507,2]
[329037763,1718070572204,-2823.25950554,0.00014507,2]
[329037764,1718070572236,-209.56877311,0.00014508,2]
[329037765,1718070572275,-1490.47614766,0.00014508,2]
[329037766,1718070572300,-153.04578458,0.00014509,2]
[329037767,1718070572325,-838.86165995,0.00014608,2]
[329037768,1718070572349,-270.64097422,0.00014608,2]
[329037769,1718070632877,-226.625973,0.00014434,2]
[329037772,1718070632887,-269.72066,0.00014679,2]
[329037775,1718070632900,-730.35536255,0.00014679,2]
[329037780,1718070632912,-7343.88972904,0.00014679,2]
[329037783,1718070632927,-2635.31230155,0.00014679,2]
[329037786,1718070632937,-3019.72982412,0.00014679,2]
[329037789,1718070632948,-2195.01899183,0.0001468,2]
[329037792,1718070632960,-300.0,0.00014681,2]
[329037794,1718070632970,-3387.45240909,0.00014683,2]
[329037796,1718070632980,-300.0,0.00014684,2]
[329037801,1718070632994,-150.0,0.00014684,2]
[329037803,1718070633008,-182.83117578,0.0001499,2]
[329037806,1718070633022,-151.11,0.0001499,2]
[329037809,1718070633036,-8422.79981826,0.00014999,2]
[329037811,1718070633049,-680749.890851,0.00015,2]
[329037814,1718070633063,-49327.91385548,0.00015,2]
[329037816,1718070633079,-932.56554261,0.00015,2]
[329037819,1718070633095,-5822.18862995,0.00015,2]
[329037821,1718070633112,-1671.1711544,0.00015,2]
[329037822,1718070633416,-324712.22826129,0.00015,2]
[329037823,1718070633429,-14066.42892057,0.00015,2]
[329037824,1718070633444,-562.43544538,0.00015,2]
[329037825,1718070633459,-1094.89027509,0.00015,2]
[329037826,1718070633480,-1146.22823334,0.00015,2]
[329037827,1718070633496,-6500.0937035,0.00015,2]
[329037828,1718070633510,-420.0,0.00016072,2]
[329037829,1718070633524,-210.0,0.00016152,2]
[329037830,1718070633538,-155.03453448,0.00016316,2]
[329037831,1718070633551,-499.99,0.00016316,2]
[329037832,1718070633565,-1806.78931483,0.00017259,2]
[329037833,1718070633577,-587.0,0.00017596,2]
[329037834,1718070633588,-293.0,0.00017767,2]
[329037835,1718070633600,-155.03453448,0.00018257,2]
[329037836,1718070633612,-769.84351295,0.00019,2]
[329037837,1718070633626,-411.95127253,0.00019,2]
[329037838,1718070633638,-823.0,0.00019264,2]
[329037839,1718070633651,-411.0,0.00019544,2]
[329037840,1718070633663,-169.42447576,0.00019625,2]
[329037841,1718070633675,-1011.8835015,0.0002,2]
[329037842,1718070633688,-187.6090952,0.00020068,2]
[329037843,1718070633700,-155.0,0.00020069,2]
[329037844,1718070633715,-3443.24278907,0.00020069,2]
[329037845,1718070633730,-2821.6484612,0.00020069,2]
[329037846,1718070633742,-155.0,0.0002007,2]
[329037847,1718070633753,-1780.9840789,0.0002007,2]
[329037848,1718070633772,-551.23394969,0.00020072,2]
[329037849,1718070633790,-226.7178388,0.000201,2]
[329037850,1718070633803,-155.03453448,0.00020197,2]
[329037851,1718070633816,-169.4244757,0.00020559,2]
[329037852,1718070633830,-1152.0,0.0002109,2]
[329037853,1718070633843,-169.4244757,0.00021493,2]
[329037854,1718070633856,-1000.0,0.000219,2]
[329037855,1718070633869,-300.46224556,0.0002194,2]
[329037856,1718070633881,-181.19376006,0.0002194,2]
[329037857,1718070633893,-5096.2415476,0.0002194,2]
[329037858,1718070633906,-155.12885448,0.0002194,2]
[329037859,1718070633920,-790.86878271,0.00022,2]
[329037860,1718070633935,-155.03453448,0.00022138,2]
[329037861,1718070633950,-169.4244757,0.00022427,2]
[329037862,1718070633966,-308.48,0.00022473,2]
[329037863,1718070633979,-1209.0,0.0002309,2]
[329037864,1718070633992,-169.4244757,0.00023361,2]
[329037865,1718070634004,-167.4,0.00023908,2]
[329037866,1718070634017,-379.5171027,0.00024,3]
[329037867,1718070634030,-151.11,0.00024025,2]
[329037869,1718070634043,-12525.32982501,0.00024035,2]
[329037871,1718070634059,-10518.22017499,0.00024035,2]
[329037873,1718070634070,-155.03453448,0.00024078,2]
[329037876,1718070634083,-800.0,0.00024247,2]
[329037878,1718070634095,-800.0,0.00024274,2]
[329037880,1718070634107,-250.0,0.00024284,2]
[329037882,1718070634119,-169.4244757,0.00024295,2]
[329037884,1718070634131,-332.82,0.00024324,2]
[329037886,1718070634146,-167.49,0.00024384,2]
[329037889,1718070634158,-158.69,0.00024384,2]
[329037891,1718070634170,-177.17,0.00024604,2]
[329037893,1718070634183,-870.0,0.000247,2]
[329037895,1718070634195,-308.48,0.00024737,2]
[329037897,1718070634207,-354.23845316,0.00024799,2]
[329037899,1718070634219,-354.23845314,0.00024799,2]
[329037901,1718070634232,-354.23845314,0.00024799,2]
[329037903,1718070634245,-354.23845314,0.00024799,2]
[329037905,1718070634258,-354.23845314,0.00024799,2]
[329037907,1718070634269,-354.23845314,0.00024799,2]
[329037910,1718070634281,-167.4,0.00024895,2]
[329037912,1718070634293,-6800.13647761,0.000249,2]
[329037914,1718070634305,-800.0,0.00024986,2]
[329037915,1718070634316,-500.0,0.00025,3]
[329037916,1718070634328,-500.0,0.00025,3]
[329037917,1718070634340,-500.0,0.00025,2]
[329037918,1718070634351,-500.0,0.00025,2]
[329037919,1718070634363,-500.0,0.00025,3]
[329037920,1718070634375,-500.0,0.00025,2]
[329037921,1718070634387,-300.0,0.00025,3]
[329037922,1718070634400,-202.74,0.00025,2]
[329037923,1718070634413,-155.0,0.00025,2]
[329037924,1718070634425,-930.80229755,0.00025,2]
[329037925,1718070634438,-225.30126893,0.00025,2]
[329037926,1718070634451,-326.14509392,0.00025,2]
[329037927,1718070634464,-159.16193086,0.00025226,2]
[329037928,1718070634476,-326.26842881,0.00025227,2]
[329037929,1718070634487,-1277.51036429,0.00025228,2]
[329037930,1718070634499,-169.4244757,0.0002523,2]
[329037931,1718070634512,-354.23845314,0.00025339,2]
[329037932,1718070634524,-1000.0,0.00025357,2]
[329037933,1718070634537,-453.77515749,0.00025845,2]
[329037934,1718070634549,-167.4,0.00025881,2]
[329037935,1718070634561,-11894.83791378,0.00026,5]
[329037936,1718070634573,-155.03453448,0.00026019,2]
[329037937,1718070634586,-166.68931393,0.00026043,2]
[329037938,1718070634598,-266.497374,0.00026135,2]
[329037939,1718070634610,-156.81433423,0.00026135,2]
[329037940,1718070634623,-169.4244757,0.00026164,2]
[329037941,1718070634635,-155.46431947,0.00026313,2]
[329037942,1718070634648,-157.99556849,0.00026396,2]
[329037943,1718070634661,-13131.12565328,0.00026416,2]
[329037944,1718070634674,-160.80386658,0.00026432,2]
[329037945,1718070634686,-2057.6267458,0.00026858,2]
[329037946,1718070634698,-354.23845314,0.00026859,2]
[329037947,1718070634712,-167.4,0.00026868,2]
[329037948,1718070634725,-163.66630188,0.00026921,2]
[329037949,1718070634737,-4031.76978849,0.00027,2]
[329037950,1718070634749,-200.0,0.00027,2]
[329037951,1718070634765,-308.48,0.00027001,2]
[329037952,1718070634778,-332.82,0.00027064,2]
[329037953,1718070634790,-163.66630188,0.0002709,2]
[329037954,1718070634802,-169.4244757,0.00027098,2]
[329037955,1718070634814,-160.02048144,0.0002723,2]
[329037956,1718070634826,-2516.0,0.000273,3]
[329037957,1718070634837,-155.46431947,0.00027352,2]
[329037958,1718070634849,-811.31348389,0.0002739,2]
[329037959,1718070634861,-150.0,0.00027397,2]
[329037960,1718070634872,-178.99,0.00027397,2]
[329037961,1718070634884,-870.73075514,0.000274,2]
[329037962,1718070634896,-175.83,0.000274,2]
[329037963,1718070634907,-175.83,0.000274,2]
[329037964,1718070634919,-175.83,0.000274,2]
[329037965,1718070634931,-175.83,0.000274,2]
[329037966,1718070634942,-175.83,0.000274,2]
[329037967,1718070634954,-154.39563405,0.00027443,2]
[329037968,1718070634966,-158.67652027,0.00027688,2]
[329037969,1718070634978,-154.39563405,0.00027751,2]
[329037970,1718070634990,-163.66630188,0.00027803,2]
[329037971,1718070635001,-167.4,0.00027854,2]
[329037972,1718070635013,-1065.162,0.00027959,2]
[329037973,1718070635025,-3864.867,0.00027959,2]
[329037974,1718070635036,-155.03453448,0.00027959,2]
[329037975,1718070635048,-4289.81082579,0.00028,30]
[329037976,1718070635060,-169.4244757,0.00028032,2]
[329037977,1718070635072,-155.46431947,0.00028107,2]
[329037978,1718070635084,-167.9440675,0.00028111,2]
[329037979,1718070635096,-160.80386658,0.00028155,2]
[329037980,1718070635109,-354.23845314,0.0002838,2]
[329037981,1718070635121,-160.80386658,0.00028466,2]
[329037982,1718070635133,-1000.0,0.00028527,2]
[329037983,1718070635149,-175.83,0.0002865,2]
[329037984,1718070635160,-12712.0725225,0.0002866,2]
[329037985,1718070635172,-253.45455834,0.00028749,2]
[329037986,1718070635184,-157.11177428,0.00028749,2]
[329037987,1718070635196,-500.0,0.00028809,2]
[329037988,1718070635208,-1122.23844785,0.00028841,7]
[329037989,1718070635219,-339.0858,0.00028841,2]
[329037990,1718070635231,-525.0088,0.00028841,2]
[329037991,1718070635242,-7500.0,0.00028841,2]
[329037992,1718070635254,-150.48142398,0.000289,2]
[329037993,1718070635266,-941.62857974,0.000289,2]
[329037994,1718070635277,-212.0,0.00028908,5]
[329037995,1718070635289,-151.11,0.00028931,2]
[329037996,1718070635300,-175.83,0.00028931,2]
[329037997,1718070635312,-24762.21392456,0.00028941,2]
[329037998,1718070635328,-24432.14589492,0.00028941,2]
[329037999,1718070635341,-12205.69657778,0.00028941,2]
[329038000,1718070635354,-264.37658424,0.00028941,2]
[329038001,1718070635368,-14891.42473928,0.00028941,2]
[329038002,1718070635382,-18570.756,0.00028941,2]
[329038003,1718070635396,-13037.42092,0.00028941,2]
[329038004,1718070635409,-6592.7144032,0.00028941,2]
[329038005,1718070635423,-16477.43359206,0.00028941,2]
[329038006,1718070635444,-4265.1967325,0.00028941,2]
[329038007,1718070635463,-105576.90121319,0.00028941,2]
[329038008,1718070635478,-155.27993565,0.00028941,2]
[329038009,1718070635493,-280.15151,0.00028941,2]
[329038010,1718070635506,-220.17285456,0.00028941,2]
[329038011,1718070635519,-305.12038053,0.00028941,2]
[329038012,1718070635541,-169.57640051,0.00028941,2]
[329038013,1718070635560,-200.0,0.0002896,2]
[329038014,1718070635593,-227.0,0.0002896,2]
[329038015,1718070635607,-169.4244757,0.00028966,2]
[329038016,1718070635619,-493.81,0.00029,6]
[329038017,1718070635632,-945.7167144,0.00029,30]
[329038018,1718070635646,-9750.05,0.00029009,2]
[329038019,1718070635658,-14516.32,0.00029009,2]
[329038020,1718070635670,-4417.99,0.00029009,2]
[329038021,1718070635683,-29999.99,0.00029009,2]
[329038022,1718070635695,-197.4114303,0.0002901,21]
[329038023,1718070635708,-175.83,0.00029029,2]
[329038024,1718070635720,-182.83117578,0.00029031,2]
[329038025,1718070635732,-182.83117578,0.00029031,2]
[329038026,1718070635744,-151.11,0.00029031,2]
[329038027,1718070635758,-2612.69780592,0.00029039,2]
[329038028,1718070635772,-5423.16704567,0.00029039,5]
[329038029,1718070635784,-571.43945707,0.00029039,2]
[329038030,1718070635796,-1624.81424796,0.00029039,30]
[329038031,1718070635808,-234.81630174,0.00029039,2]
[329038032,1718070635820,-3060.11804676,0.00029039,2]
[329038033,1718070635832,-372.77679308,0.00029039,2]
[329038034,1718070635844,-1630.49186557,0.00029039,2]
[329038035,1718070635856,-155.40929944,0.00029039,4]
[329038036,1718070635869,-595.8838048,0.00029039,2]
[329038037,1718070635880,-155.4316841,0.00029039,2]
[329038038,1718070635893,-335.29228542,0.00029039,2]
[329038039,1718070635906,-6275.47136767,0.00029039,2]
[329038040,1718070635918,-483.4163523,0.00029039,2]
[329038041,1718070635930,-155.50554735,0.00029039,2]
[329038042,1718070635941,-155.50403431,0.00029039,2]
[329038043,1718070635954,-3906.97545284,0.00029039,2]
[329038044,1718070635965,-547.61072624,0.00029039,2]
[329038045,1718070635978,-155.38372143,0.00029039,2]
[329038046,1718070635992,-155.42663148,0.00029039,2]
[329038047,1718070636004,-155.22015491,0.00029039,2]
[329038048,1718070636016,-162.23799331,0.00029039,2]
[329038049,1718070636029,-4458.83885716,0.00029039,2]
[329038050,1718070636044,-690.60490953,0.00029039,2]
[329038051,1718070636056,-155.6239061,0.00029039,2]
[329038052,1718070636067,-362.656257,0.00029039,2]
[329038053,1718070636079,-437.95373651,0.00029039,2]
[329038054,1718070636091,-155.28388946,0.00029039,2]
[329038055,1718070636102,-471.08609938,0.00029039,2]
[329038056,1718070636119,-3423.5747136,0.00029039,2]
[329038057,1718070636130,-210.05784548,0.00029039,2]
[329038058,1718070636143,-328.90514041,0.00029039,2]
[329038059,1718070636158,-2821.42578865,0.00029039,2]
[329038060,1718070636169,-526.88643941,0.00029039,2]
[329038061,1718070636545,-1490.47614766,0.00029039,2]
[329038062,1718070636566,-699.05138329,0.00029039,2]
[329038063,1718070636581,-3583.54311989,0.0002904,3]
[329038064,1718070636601,-5895.19145889,0.0002904,2]
[329038065,1718070636611,-208.9443675,0.0002904,2]
[329038066,1718070636620,-6171.38555826,0.0002904,2]
[329038067,1718070636630,-9803.51,0.0002904,2]
[329038068,1718070636639,-173.9775236,0.00029041,5]
[329038069,1718070636649,-500.0,0.00029041,4]
[329038070,1718070636659,-500.0,0.00029041,4]
[329038071,1718070636669,-482.20100091,0.00029041,4]
[329038072,1718070636679,-502.47466862,0.00029041,4]
[329038073,1718070636688,-502.76671003,0.00029041,4]
[329038074,1718070636699,-503.96518425,0.00029041,4]
[329038075,1718070636710,-501.54133578,0.00029041,4]
[329038076,1718070636719,-500.0,0.00029041,4]
[329038077,1718070636733,-526.0462587,0.00029041,4]
[329038078,1718070636742,-500.0,0.00029041,4]
[329038079,1718070636753,-502.80120704,0.00029041,4]
[329038080,1718070636767,-500.0,0.00029041,4]
[329038081,1718070636779,-500.0,0.00029041,4]
[329038082,1718070636789,-502.92919112,0.00029041,4]
[329038083,1718070636798,-500.0,0.00029041,4]
[329038084,1718070636810,-518.38864244,0.00029041,4]
[329038085,1718070636820,-500.0,0.00029041,4]
[329038086,1718070636831,-616.61585414,0.00029041,4]
[329038087,1718070636843,-510.65531779,0.00029041,4]
[329038088,1718070636853,-500.0,0.00029041,4]
[329038089,1718070636864,-509.76418581,0.00029041,4]
[329038090,1718070636876,-520.9578089,0.00029041,4]
[329038091,1718070636888,-207.66474565,0.00029041,4]
[329038092,1718070636899,-513.20986981,0.00029041,4]
[329038093,1718070636909,-500.0,0.00029041,4]
[329038094,1718070636920,-547.60981168,0.00029041,4]
[329038095,1718070636932,-511.9615903,0.00029041,4]
[329038096,1718070636942,-502.79681462,0.00029041,4]
[329038097,1718070636952,-500.0,0.00029041,4]
[329038098,1718070636963,-526.20786251,0.00029041,4]
[329038099,1718070636973,-500.0,0.00029041,4]
[329038100,1718070636983,-502.47733295,0.00029041,4]
[329038101,1718070636993,-508.28159294,0.00029041,4]
[329038102,1718070637003,-511.92018807,0.00029041,4]
[329038103,1718070637014,-529.68321398,0.00029041,4]
[329038104,1718070637024,-500.0,0.00029041,4]
[329038105,1718070637036,-502.81065504,0.00029041,4]
[329038106,1718070637046,-522.8956294,0.00029041,4]
[329038107,1718070637056,-503.10811138,0.00029041,4]
[329038108,1718070637066,-500.0,0.00029041,4]
[329038109,1718070637078,-540.3948307,0.00029041,4]
[329038110,1718070637089,-543.31617093,0.00029041,4]
[329038111,1718070637100,-500.0,0.00029041,4]
[329038112,1718070637110,-500.0,0.00029041,4]
[329038113,1718070637120,-500.0,0.00029041,4]
[329038114,1718070637130,-500.0,0.00029041,4]
[329038115,1718070637141,-503.14086447,0.00029041,4]
[329038116,1718070637151,-501.4464726,0.00029041,4]
[329038117,1718070637162,-500.0,0.00029041,4]
[329038118,1718070637172,-500.0,0.00029041,4]
[329038119,1718070637182,-500.0,0.00029041,4]
[329038120,1718070637192,-500.0,0.00029041,4]
[329038121,1718070637202,-511.53895922,0.00029041,4]
[329038122,1718070637213,-516.24201577,0.00029041,4]
[329038123,1718070637223,-500.0,0.00029041,4]
[329038124,1718070637233,-500.0,0.00029041,4]
[329038125,1718070637244,-507.71208019,0.00029041,4]
[329038126,1718070637255,-500.0,0.00029041,4]
[329038127,1718070637267,-500.0,0.00029041,4]
[329038128,1718070637277,-500.0,0.00029041,4]
[329038129,1718070637287,-500.0,0.00029041,4]
[329038130,1718070637297,-500.0,0.00029041,4]
[329038131,1718070637307,-194.56215518,0.00029041,4]
[329038132,1718070637318,-464.3139427,0.00029041,4]
[329038133,1718070637330,-500.0,0.00029041,4]
[329038134,1718070637340,-200.0,0.00029041,4]
[329038135,1718070637350,-500.0,0.00029041,4]
[329038136,1718070637360,-203.98471373,0.00029041,4]
[329038137,1718070637370,-500.0,0.00029041,4]
[329038138,1718070637381,-523.79962687,0.00029041,4]
[329038139,1718070637391,-501.62551573,0.00029041,4]
[329038140,1718070637402,-524.61949561,0.00029041,4]
[329038141,1718070637412,-479.11755505,0.00029041,4]
[329038142,1718070637800,-20.88244495,0.00029041,4]
[329038143,1718070637812,-500.0,0.00029041,4]
[329038144,1718070637822,-500.0,0.00029041,4]
[329038145,1718070637833,-453.14070134,0.00029041,4]
[329038146,1718070637844,-500.0,0.00029041,4]
[329038147,1718070637855,-502.97430135,0.00029041,4]
[329038148,1718070637868,-500.0,0.00029041,4]
[329038149,1718070637878,-525.05176893,0.00029041,4]
[329038150,1718070637890,-500.0,0.00029041,4]
[329038151,1718070637902,-500.0,0.00029041,4]
[329038152,1718070637912,-500.0,0.00029041,4]
[329038153,1718070637925,-500.0,0.00029041,4]
[329038154,1718070637940,-512.61987834,0.00029041,4]
[329038155,1718070637954,-500.0,0.00029041,4]
[329038156,1718070637964,-500.0,0.00029041,4]
[329038157,1718070637976,-267.71200739,0.00029041,4]
[329038158,1718070637987,-500.0,0.00029041,4]
[329038159,1718070637998,-201.49985877,0.00029041,4]
[329038160,1718070638018,-500.0,0.00029041,4]
[329038161,1718070638030,-500.0,0.00029041,4]
[329038162,1718070638048,-529.11635117,0.00029041,4]
[329038163,1718070638060,-500.0,0.00029041,4]
[329038164,1718070638072,-587.27376357,0.00029041,4]
[329038165,1718070638088,-500.0,0.00029041,4]
[329038166,1718070638101,-500.0,0.00029041,4]
[329038167,1718070638120,-510.82216334,0.00029041,4]
[329038168,1718070638138,-500.0,0.00029041,4]
[329038169,1718070638157,-500.0,0.00029041,4]
[329038170,1718070638171,-500.0,0.00029041,4]
[329038171,1718070638186,-500.0,0.00029041,4]
[329038172,1718070638198,-500.0,0.00029041,4]
[329038173,1718070638212,-500.0,0.00029041,4]
[329038174,1718070638225,-500.0,0.00029041,4]
[329038175,1718070638243,-500.0,0.00029041,4]
[329038176,1718070638255,-10.81665885,0.00029041,4]
[329038177,1718070638287,-489.18334115,0.00029041,4]
[329038178,1718070638298,-150.63822149,0.00029041,4]
[329038179,1718070638315,-46.60185244,0.00029041,4]
[329038180,1718070638336,-453.39814756,0.00029041,4]
[329038181,1718070638347,-422.20113219,0.00029041,4]
[329038182,1718070638361,-77.79886781,0.00029041,4]
[329038183,1718070638372,-500.0,0.00029041,4]
[329038184,1718070638382,-500.0,0.00029041,4]
[329038185,1718070638394,-458.6573751,0.00029041,4]
[329038186,1718070638467,-41.3426249,0.00029041,4]
[329038187,1718070638477,-500.0,0.00029041,4]
[329038188,1718070638488,-500.0,0.00029041,4]
[329038189,1718070638499,-500.0,0.00029041,4]
[329038190,1718070638509,-512.84610183,0.00029041,4]
[329038191,1718070638519,-500.0,0.00029041,4]
[329038192,1718070638530,-250.07310989,0.00029041,4]
[329038193,1718070638540,-338.61908686,0.00029041,4]
[329038194,1718070638556,-161.38091314,0.00029041,4]
[329038195,1718070638567,-500.0,0.00029041,4]
[329038196,1718070638577,-500.0,0.00029041,4]
[329038197,1718070638588,-500.0,0.00029041,4]
[329038198,1718070638600,-502.30311744,0.00029041,4]
[329038199,1718070638612,-500.0,0.00029041,4]
[329038200,1718070638622,-500.0,0.00029041,4]
[329038201,1718070638632,-500.0,0.00029041,4]
[329038202,1718070638644,-500.0,0.00029041,4]
[329038203,1718070638655,-500.0,0.00029041,4]
[329038204,1718070638666,-522.96899925,0.00029041,4]
[329038205,1718070638677,-416.88387918,0.00029041,4]
[329038206,1718070638695,-100.8103098,0.00029041,4]
[329038207,1718070638704,-207.55963172,0.00029041,4]
[329038208,1718070638813,-0.01654132,0.00029041,4]
[329038209,1718070638825,-292.42382696,0.00029041,4]
[329038210,1718070638836,-47.42916304,0.00029041,4]
[329038211,1718070638849,-452.57083696,0.00029041,4]
[329038212,1718070638859,-500.0,0.00029041,4]
[329038213,1718070638870,-507.92725993,0.00029041,4]
[329038214,1718070638880,-500.0,0.00029041,4]
[329038215,1718070638891,-529.97168372,0.00029041,4]
[329038216,1718070638902,-502.36597122,0.00029041,4]
[329038217,1718070638912,-500.0,0.00029041,4]
[329038218,1718070638922,-500.0,0.00029041,4]
[329038219,1718070638932,-509.70025215,0.00029041,4]
[329038223,1718070638942,-516.61573077,0.00029041,4]
[329038229,1718070638952,-351.13352031,0.00029041,4]
[329038231,1718070638975,-174.35257333,0.00029041,4]
[329038233,1718070638986,-500.0,0.00029041,4]
[329038235,1718070638997,-500.0,0.00029041,4]
[329038237,1718070639007,-500.0,0.00029041,4]
[329038239,1718070639018,-500.0,0.00029041,4]
[329038241,1718070639029,-500.0,0.00029041,4]
[329038243,1718070639041,-517.82509193,0.00029041,4]
[329038244,1718070639055,-500.0,0.00029041,4]
[329038245,1718070639072,-500.0,0.00029041,4]
[329038246,1718070639085,-567.68014976,0.00029041,4]
[329038247,1718070639096,-500.0,0.00029041,4]
[329038248,1718070639107,-500.0,0.00029041,4]
[329038249,1718070639119,-506.47223803,0.00029041,4]
[329038250,1718070639130,-500.0,0.00029041,4]
[329038251,1718070639145,-500.0,0.00029041,4]
[329038252,1718070639155,-555.67499544,0.00029041,4]
[329038253,1718070639166,-500.0,0.00029041,4]
[329038254,1718070639176,-500.0,0.00029041,4]
[329038255,1718070639186,-578.75112514,0.00029041,4]
[329038256,1718070639197,-500.0,0.00029041,4]
[329038257,1718070639208,-500.0,0.00029041,4]
[329038258,1718070639219,-507.40777482,0.00029041,4]
[329038259,1718070639229,-500.0,0.00029041,4]
[329038260,1718070639240,-500.0,0.00029041,4]
[329038261,1718070639251,-500.0,0.00029041,4]
[329038262,1718070639262,-500.0,0.00029041,4]
[329038263,1718070639272,-548.77,0.00029041,4]
[329038264,1718070639283,-502.86972709,0.00029041,4]
[329038265,1718070639294,-548.77,0.00029041,4]
[329038266,1718070639304,-548.77,0.00029041,4]
[329038267,1718070639315,-548.77,0.00029041,4]
[329038268,1718070639325,-500.0,0.00029041,4]
[329038269,1718070639336,-259.77855503,0.00029041,4]
[329038270,1718070639346,-500.0,0.00029041,4]
[329038271,1718070639356,-500.0,0.00029041,4]
[329038272,1718070639367,-509.99519881,0.00029041,4]
[329038273,1718070639377,-500.0,0.00029041,4]
[329038274,1718070639388,-500.0,0.00029041,4]
[329038275,1718070639399,-500.0,0.00029041,4]
[329038276,1718070639413,-500.0,0.00029041,4]
[329038277,1718070639424,-222.19132935,0.00029041,4]
[329038278,1718070639436,-500.0,0.00029041,4]
[329038279,1718070639458,-500.0,0.00029041,4]
[329038280,1718070639469,-388.88599062,0.00029041,4]
[329038330,1718070640853,-790.86878271,0.00022137,2]
[329038332,1718070640864,-155.0,0.00025225,2]
[329038334,1718070640875,-200.0,0.00027995,2]
[329038336,1718070640887,-17284.8629398,0.000287,2]
[329038343,1718070640953,-1085.84267537,0.000287,2]
[329038345,1718070640966,-1344.52134932,0.000287,2]
[329038347,1718070640977,-294.50130228,0.00028841,2]
[329038349,1718070640989,-111.11400938,0.00029041,4]
[329038351,1718070640999,-500.0,0.00029041,4]
[329038353,1718070641012,-500.0,0.00029041,4]
[329038355,1718070641022,-500.0,0.00029041,4]
[329038357,1718070641032,-500.0,0.00029041,4]
[329038359,1718070641043,-541.31013249,0.00029041,4]
[329038361,1718070641053,-305.34187714,0.00029041,4]
[329038363,1718070641063,-500.0,0.00029041,4]
[329038366,1718070641074,-500.0,0.00029041,4]
[329038368,1718070641085,-500.0,0.00029041,4]
[329038370,1718070641095,-500.0,0.00029041,4]
[329038372,1718070641106,-500.0,0.00029041,4]
[329038374,1718070641117,-512.62210188,0.00029041,4]
[329038376,1718070641127,-500.0,0.00029041,4]
[329038378,1718070641137,-500.0,0.00029041,4]
[329038379,1718070641146,-500.0,0.00029041,4]
[329038381,1718070641158,-512.198058,0.00029041,4]
[329038383,1718070641169,-500.0,0.00029041,4]
[329038385,1718070641180,-500.0,0.00029041,4]
[329038387,1718070641190,-500.0,0.00029041,4]
[329038389,1718070641200,-500.0,0.00029041,4]
[329038392,1718070641219,-500.0,0.00029041,4]
[329038394,1718070641233,-500.0,0.00029041,4]
[329038397,1718070641244,-523.79588431,0.00029041,4]
[329038399,1718070641255,-500.0,0.00029041,4]
[329038401,1718070641267,-500.0,0.00029041,4]
[329038403,1718070641278,-500.0,0.00029041,4]
[329038405,1718070641290,-500.0,0.00029041,4]
[329038407,1718070641301,-515.40144905,0.00029041,4]